fUSD/lending_fUSD_20260608
["ID","MTS","AMOUNT","RATE_DAILY","PERIOD"]
[424417730,1780858274000,-5044.0,0.0003297,7]
[424417713,1780858274000,-500.0,0.00032877,10]
[424417724,1780858274000,-150.0,0.00032955,2]
[424417714,1780858274000,-500.0,0.00032877,10]
[424417688,1780858274000,-150.0,0.00032877,3]
[424417693,1780858274000,-150.0,0.00032877,3]
[424417689,1780858274000,-150.0,0.00032877,3]
[424417695,1780858274000,-150.0,0.00032877,3]
[424417709,1780858274000,-500.0,0.00032877,2]
[424417685,1780858274000,-150.0,0.00032877,3]
[424417691,1780858274000,-150.0,0.00032877,3]
[424417687,1780858274000,-150.0,0.00032877,3]
[424417690,1780858274000,-150.0,0.00032877,3]
[424417696,1780858274000,-150.0,0.00032877,3]
[424417694,1780858274000,-150.0,0.00032877,3]
[424417698,1780858274000,-150.0,0.00032877,3]
[424417705,1780858274000,-220.09,0.00032877,120]
[424417692,1780858274000,-150.0,0.00032877,3]
[424417699,1780858274000,-150.0,0.00032877,3]
[424417697,1780858274000,-150.0,0.00032877,3]
[424417710,1780858274000,-500.0,0.00032877,2]
[424417712,1780858274000,-426.9602847,0.00032877,2]
[424417708,1780858274000,-500.0,0.00032877,2]
[424417701,1780858274000,-150.0,0.00032877,3]
[424417703,1780858274000,-150.0,0.00032877,3]
[424417711,1780858274000,-500.0,0.00032877,2]
[424417700,1780858274000,-150.0,0.00032877,3]
[424417702,1780858274000,-150.0,0.00032877,3]
[424417706,1780858274000,-500.0,0.00032877,2]
[424417707,1780858274000,-500.0,0.00032877,2]
[424417704,1780858274000,-287.0,0.00032877,3]
[424417757,1780858275000,-500.0,0.00033012,30]
[424417749,1780858275000,-377.0,0.00033,120]
[424417768,1780858275000,-3113.43,0.00033041,30]
[424417758,1780858275000,-500.0,0.00033012,30]
[424417756,1780858275000,-707.0,0.00033011,8]
[424417754,1780858275000,-574.316164,0.00033,14]
[424417755,1780858275000,-151.0,0.00033007,60]
[424417750,1780858275000,-6001.42,0.00033,14]
[424417752,1780858275000,-1000.0,0.00033,30]
[424417747,1780858275000,-40549.50316454,0.00033,2]
[424417753,1780858275000,-1002.9006161,0.00033,120]
[424417745,1780858275000,-150.0,0.00033,120]
[424417748,1780858275000,-158.0,0.00033,120]
[424417746,1780858275000,-300.2094631,0.00033,7]
[424417744,1780858275000,-274.82074551,0.00033,120]
[424417742,1780858275000,-226.5,0.00033,14]
[424417743,1780858275000,-176.92009753,0.00033,60]
[424417761,1780858275000,-500.0,0.00033014,30]
[424417751,1780858275000,-517.07,0.00033,30]
[424417759,1780858275000,-500.0,0.00033014,30]
[424417763,1780858275000,-500.0,0.00033014,30]
[424417764,1780858275000,-500.0,0.00033014,30]
[424417760,1780858275000,-500.0,0.00033014,30]
[424417781,1780858275000,-1194.73916931,0.00033116,2]
[424417782,1780858275000,-1061.93517973,0.00033116,2]
[424417777,1780858275000,-410.59,0.00033096,120]
[424417776,1780858275000,-500.0,0.00033092,10]
[424417773,1780858275000,-150.0,0.0003308,2]
[424417775,1780858275000,-150.0,0.0003308,2]
[424417771,1780858275000,-150.0,0.0003308,2]
[424417778,1780858275000,-198.77,0.000331,30]
[424417779,1780858275000,-2000.0,0.00033116,2]
[424417774,1780858275000,-150.0,0.0003308,2]
[424417780,1780858275000,-1159.30079778,0.00033116,2]
[424417772,1780858275000,-150.0,0.0003308,2]
[424417770,1780858275000,-150.0,0.0003308,2]
[424417783,1780858275000,-1202.712744,0.00033116,2]
[424417766,1780858275000,-166.3,0.00033014,30]
[424417765,1780858275000,-500.0,0.00033014,30]
[424417767,1780858275000,-314.05761245,0.00033033,2]
[424417762,1780858275000,-500.0,0.00033014,30]
[424417769,1780858275000,-318.14821759,0.00033043,2]
[424417784,1780858314000,168.911581,0.00028847,120]
[424417785,1780858386000,43.03988733,0.00010587,2]
[424417789,1780858904000,203.36,0.00028987,120]
[424417790,1780859001000,300.0,0.00030136,120]
[424417803,1780859432000,-456.96011267,0.00010587,2]
[424417812,1780859432000,-182.47402116,0.000139,2]
[424417811,1780859432000,-215.83393831,0.00011952,2]
[424417804,1780859432000,-150.0,0.00010597,2]
[424417807,1780859432000,-250.0,0.00011646,2]
[424417805,1780859432000,-211.70863733,0.00010607,2]
[424417809,1780859432000,-160.0,0.00011948,2]
[424417806,1780859432000,-38.29136267,0.00010607,2]
[424417815,1780859432000,-919.8780689,0.00014062,2]
[424417813,1780859432000,-250.0,0.00013989,2]
[424417814,1780859432000,-250.0,0.00014,2]
[424417817,1780859432000,-9999.99,0.00014862,2]
[424417816,1780859432000,-732.78160235,0.00014062,2]
[424417819,1780859432000,-1877.94586463,0.00014862,2]
[424417818,1780859432000,-150.99,0.00014862,2]
[424417820,1780859432000,-430.57,0.00014862,2]
[424417808,1780859432000,-250.0,0.00011646,2]
[424417854,1780859438000,-1000.0,0.00015577,2]
[424417855,1780859438000,-1550.0,0.00015588,2]
[424417853,1780859438000,-166.66,0.00015516,2]
[424417872,1780859438000,-255.0,0.00016109,2]
[424417863,1780859438000,-598.15,0.0001592,2]
[424417871,1780859438000,-168.73603906,0.00016076,2]
[424417865,1780859438000,-232.03,0.0001592,2]
[424417874,1780859438000,-166.66,0.00016143,2]
[424417878,1780859438000,-166.66,0.00016456,2]
[424417858,1780859438000,-199.5,0.00015597,2]
[424417870,1780859438000,-300.0,0.00016,2]
[424417867,1780859438000,-200.0,0.0001592,2]
[424417880,1780859438000,-1672.7364795,0.00016506,2]
[424417873,1780859438000,-6037.3,0.00016116,2]
[424417851,1780859438000,-2500.0,0.00015478,2]
[424417860,1780859438000,-800.0,0.00015626,2]
[424417850,1780859438000,-1555.5,0.0001541,2]
[424417862,1780859438000,-166.66,0.00015829,2]
[424417852,1780859438000,-168.02,0.00015511,2]
[424417876,1780859438000,-7852.9736,0.00016444,2]
[424417859,1780859438000,-150.0,0.00015601,2]
[424417848,1780859438000,-166.66,0.00015203,2]
[424417844,1780859438000,-166.66,0.00014889,2]
[424417847,1780859438000,-150.0,0.00015,2]
[424417841,1780859438000,-2893.29,0.00014862,2]
[424417846,1780859438000,-151.0,0.00014986,2]
[424417842,1780859438000,-999.99,0.00014862,2]
[424417845,1780859438000,-150.0,0.00014985,2]
[424417840,1780859438000,-7691.47413537,0.00014862,2]
[424417843,1780859438000,-1500.0,0.00014862,2]
[424417861,1780859438000,-203.36,0.00015672,2]
[424417868,1780859438000,-1613.0535,0.00015958,2]
[424417849,1780859438000,-251.73642566,0.00015379,2]
[424417884,1780859438000,-168.02,0.00016791,2]
[424417882,1780859438000,-505.52651071,0.00016638,2]
[424417919,1780859438000,-500.0,0.000182,2]
[424417918,1780859438000,-479.90044725,0.000182,2]
[424417917,1780859438000,-1280.88388877,0.0001815,2]
[424417916,1780859438000,-1865.36488656,0.0001815,2]
[424417906,1780859438000,-269.46236714,0.00017808,2]
[424417911,1780859438000,-4733.95309656,0.00018,2]
[424417907,1780859438000,-744.70267711,0.00017808,2]
[424417912,1780859438000,-196.24092626,0.00018,2]
[424417908,1780859438000,-187.6486797,0.00017808,2]
[424417910,1780859438000,-892.47662579,0.00017808,2]
[424417909,1780859438000,-625.49559902,0.00017808,2]
[424417902,1780859438000,-800.0,0.00017579,2]
[424417905,1780859438000,-168.73603906,0.00017707,2]
[424417904,1780859438000,-1235.18214925,0.00017602,2]
[424417915,1780859438000,-6819.0192,0.000181,2]
[424417900,1780859438000,-1227.0,0.00017349,2]
[424417903,1780859438000,-1798.80895522,0.00017602,2]
[424417913,1780859438000,-350.0,0.00018,2]
[424417894,1780859438000,-500.0,0.00017024,2]
[424417899,1780859438000,-382.0,0.00017349,2]
[424417892,1780859438000,-1107.63007,0.00017024,2]
[424417896,1780859438000,-1191.11104074,0.00017054,2]
[424417898,1780859438000,-1358.0,0.00017349,2]
[424417914,1780859438000,-168.02,0.00018071,2]
[424417897,1780859438000,-150.0,0.00017323,2]
[424417901,1780859438000,-3642.0,0.00017349,2]
[424417893,1780859438000,-1148.61238259,0.00017024,2]
[424417895,1780859438000,-1734.62772924,0.00017054,2]
[424417885,1780859438000,-900.0,0.00016943,2]
[424417888,1780859438000,-1030.0,0.00017024,2]
[424417889,1780859438000,-1068.11,0.00017024,2]
[424417921,1780859440000,-2097.27249291,0.000182,2]
[424417924,1780859440000,-963.02383294,0.0001821,2]
[424417925,1780859440000,-1639.125,0.0001821,2]
[424417923,1780859440000,-196.24092626,0.000182,2]
[424417922,1780859440000,-1656.7801564,0.000182,2]
[424417973,1780859446000,-500.0,0.00018399,2]
[424417976,1780859446000,-500.0,0.00018399,2]
[424417974,1780859446000,-500.0,0.00018399,2]
[424417979,1780859446000,-500.0,0.00018399,2]
[424417978,1780859446000,-500.0,0.00018399,2]
[424417971,1780859446000,-500.0,0.00018399,2]
[424417977,1780859446000,-500.0,0.00018399,2]
[424417970,1780859446000,-500.0,0.00018399,2]
[424417969,1780859446000,-500.0,0.00018399,2]
[424417968,1780859446000,-286.88547783,0.00018399,2]
[424417967,1780859446000,-500.0,0.00018399,2]
[424417955,1780859446000,-419.0,0.0001777,2]
[424417966,1780859446000,-500.0,0.00018399,2]
[424417961,1780859446000,-900.0,0.00018312,2]
[424417957,1780859446000,-159.32430013,0.00018299,2]
[424417965,1780859446000,-500.0,0.00018399,2]
[424417956,1780859446000,-1999.08476706,0.0001821,2]
[424417960,1780859446000,-246.95791495,0.0001831,2]
[424417959,1780859446000,-158.41602312,0.0001831,2]
[424417964,1780859446000,-500.0,0.00018399,2]
[424417962,1780859446000,-168.72,0.0001839,3]
[424417963,1780859446000,-506.16,0.0001839,3]
[424417954,1780859446000,-57.142,0.0001821,2]
[424417953,1780859446000,-151.0,0.000182,2]
[424417952,1780859446000,-151.0,0.000182,2]
[424417972,1780859446000,-500.0,0.00018399,2]
[424417958,1780859446000,-2500.0,0.000183,2]
[424417975,1780859446000,-500.0,0.00018399,2]
[424417990,1780859446000,-500.0,0.00018399,2]
[424417984,1780859446000,-500.0,0.00018399,2]
[424418008,1780859446000,-500.0,0.00018399,2]
[424418005,1780859446000,-500.0,0.00018399,2]
[424418007,1780859446000,-500.0,0.00018399,2]
[424418006,1780859446000,-500.0,0.00018399,2]
[424418001,1780859446000,-500.0,0.00018399,2]
[424418002,1780859446000,-500.0,0.00018399,2]
[424417981,1780859446000,-500.0,0.00018399,2]
[424417999,1780859446000,-500.0,0.00018399,2]
[424417996,1780859446000,-500.0,0.00018399,2]
[424418004,1780859446000,-500.0,0.00018399,2]
[424418003,1780859446000,-450.0,0.00018399,2]
[424417994,1780859446000,-500.0,0.00018399,2]
[424417998,1780859446000,-248.42059997,0.00018399,2]
[424418000,1780859446000,-500.0,0.00018399,2]
[424417995,1780859446000,-500.0,0.00018399,2]
[424417988,1780859446000,-500.0,0.00018399,2]
[424417997,1780859446000,-500.0,0.00018399,2]
[424417980,1780859446000,-154.61251061,0.00018399,2]
[424417991,1780859446000,-500.0,0.00018399,2]
[424417985,1780859446000,-500.0,0.00018399,2]
[424417983,1780859446000,-500.0,0.00018399,2]
[424417986,1780859446000,-500.0,0.00018399,2]
[424417992,1780859446000,-500.0,0.00018399,2]
[424417982,1780859446000,-500.0,0.00018399,2]
[424417987,1780859446000,-500.0,0.00018399,2]
[424417993,1780859446000,-500.0,0.00018399,2]
[424417989,1780859446000,-500.0,0.00018399,2]
[424418014,1780859447000,-500.0,0.00018399,2]
[424418029,1780859447000,-500.0,0.00018399,2]
[424418026,1780859447000,-500.0,0.00018399,2]
[424418019,1780859447000,-500.0,0.00018399,2]
[424418028,1780859447000,-500.0,0.00018399,2]
[424418018,1780859447000,-500.0,0.00018399,2]
[424418015,1780859447000,-500.0,0.00018399,2]
[424418010,1780859447000,-500.0,0.00018399,2]
[424418009,1780859447000,-500.0,0.00018399,2]
[424418012,1780859447000,-304.47638696,0.00018399,2]
[424418013,1780859447000,-151.16610051,0.00018399,2]
[424418017,1780859447000,-500.0,0.00018399,2]
[424418016,1780859447000,-500.0,0.00018399,2]
[424418027,1780859447000,-500.0,0.00018399,2]
[424418011,1780859447000,-630.06971066,0.00018399,2]
[424418024,1780859447000,-307.93737379,0.00018399,2]
[424418035,1780859447000,-500.0,0.00018399,2]
[424418025,1780859447000,-349.33353062,0.00018399,2]
[424418041,1780859447000,-4248.3757,0.000184,2]
[424418036,1780859447000,-500.0,0.00018399,2]
[424418039,1780859447000,-196.24092626,0.000184,2]
[424418037,1780859447000,-564.00283677,0.00018399,2]
[424418038,1780859447000,-4733.95309656,0.000184,2]
[424418033,1780859447000,-500.0,0.00018399,2]
[424418042,1780859447000,-296.897765,0.000184,2]
[424418034,1780859447000,-500.0,0.00018399,2]
[424418030,1780859447000,-500.0,0.00018399,2]
[424418040,1780859447000,-10295.63293282,0.000184,2]
[424418031,1780859447000,-2000.0,0.00018399,2]
[424418022,1780859447000,-500.0,0.00018399,2]
[424418023,1780859447000,-500.0,0.00018399,2]
[424418020,1780859447000,-500.0,0.00018399,2]
[424418032,1780859447000,-250.0,0.00018399,2]
[424418021,1780859447000,-545.12862964,0.00018399,2]
[424418043,1780859683000,150.0,0.00030136,120]
[424418044,1780859864000,233.72,0.00029027,120]
[424418045,1780859953000,292.0,0.00028616,120]
[424418047,1780860268000,618.87,0.00029863,120]
[424418048,1780860271000,618.87,0.00029863,120]
[424418049,1780860273000,618.88,0.00029863,120]
[424418056,1780860455000,220.0,0.00026424,120]
[424418057,1780860505000,250.0,0.00026424,120]
[424418058,1780860506000,250.0,0.00026424,120]
[424418059,1780860507000,160.0,0.00026424,120]
[424418081,1780860632000,-81.2082,0.00010699,2]
[424418079,1780860632000,-500.0,0.00010699,2]
[424418082,1780860632000,-418.7918,0.00010699,2]
[424418080,1780860632000,-500.0,0.00010699,2]
[424418078,1780860632000,-500.0,0.00010699,2]
[424418084,1780860632000,-150.0,0.00010699,2]
[424418086,1780860632000,-290.80378394,0.000107,2]
[424418083,1780860632000,-460.46125106,0.00010699,2]
[424418087,1780860632000,-21698.43771903,0.000107,2]
[424418088,1780860632000,-1378.17418521,0.000107,2]
[424418089,1780860632000,-849.20236668,0.000107,2]
[424418090,1780860632000,-15077.71677482,0.000107,2]
[424418091,1780860632000,-2191.50254292,0.000107,2]
[424418085,1780860632000,-150.0,0.00010699,2]
[424418137,1780860638000,-150.0,0.00013559,2]
[424418131,1780860638000,-824.4,0.00013206,2]
[424418132,1780860638000,-150.0,0.00013488,2]
[424418139,1780860638000,-150.0,0.00013581,2]
[424418135,1780860638000,-150.0,0.00013488,2]
[424418134,1780860638000,-150.0,0.00013488,2]
[424418136,1780860638000,-150.0,0.00013488,2]
[424418140,1780860638000,-150.0,0.0001363,2]
[424418141,1780860638000,-150.0,0.00013675,2]
[424418146,1780860638000,-560.56984774,0.00013699,2]
[424418144,1780860638000,-166.66,0.00013699,2]
[424418143,1780860638000,-337.44,0.00013699,2]
[424418145,1780860638000,-200.0,0.00013699,2]
[424418152,1780860638000,-150.0,0.00013862,2]
[424418147,1780860638000,-150.0,0.00013702,2]
[424418148,1780860638000,-150.0,0.00013769,2]
[424418151,1780860638000,-150.0,0.00013844,2]
[424418150,1780860638000,-166.66,0.00013836,2]
[424418133,1780860638000,-150.0,0.00013488,2]
[424418142,1780860638000,-500.0,0.00013698,2]
[424418129,1780860638000,-1845.53523124,0.00013122,2]
[424418111,1780860638000,-1845.53523132,0.00011099,2]
[424418130,1780860638000,-868.58,0.00013129,2]
[424418149,1780860638000,-150.0,0.00013773,2]
[424418109,1780860638000,-229517.85743279,0.000107,2]
[424418112,1780860638000,-1845.53523124,0.00011344,2]
[424418113,1780860638000,-857.45970217,0.00011709,2]
[424418110,1780860638000,-6734.0013165,0.00011,2]
[424418114,1780860638000,-255.0,0.00011737,2]
[424418115,1780860638000,-500.0,0.00011743,2]
[424418116,1780860638000,-250.0,0.00011769,2]
[424418118,1780860638000,-1845.53523124,0.00012233,2]
[424418138,1780860638000,-1845.53523124,0.00013567,2]
[424418120,1780860638000,-433.0,0.00012871,2]
[424418121,1780860638000,-150.99,0.00012893,2]
[424418117,1780860638000,-1845.53523124,0.00011789,2]
[424418126,1780860638000,-950.6400069,0.00013,5]
[424418122,1780860638000,-299.99,0.00012893,2]
[424418124,1780860638000,-9999.99,0.00012893,2]
[424418125,1780860638000,-3435.64,0.00012893,2]
[424418123,1780860638000,-9999.99,0.00012893,2]
[424418128,1780860638000,-2197.27,0.00013,2]
[424418127,1780860638000,-9999.99,0.00013,2]
[424418119,1780860638000,-1845.53523124,0.00012678,2]
[424418154,1780860638000,-150.0,0.00013862,2]
[424418165,1780860638000,-166.66,0.0001411,2]
[424418155,1780860638000,-150.0,0.00013916,2]
[424418196,1780860638000,-150.0,0.00014487,2]
[424418208,1780860638000,-150.0,0.00014612,2]
[424418215,1780860638000,-150.0,0.00014701,2]
[424418212,1780860638000,-150.0,0.00014629,2]
[424418210,1780860638000,-150.0,0.00014612,2]
[424418198,1780860638000,-150.0,0.00014518,2]
[424418204,1780860638000,-480.0,0.00014597,2]
[424418206,1780860638000,-150.0,0.00014612,2]
[424418200,1780860638000,-150.0,0.00014524,2]
[424418202,1780860638000,-150.0,0.00014558,2]
[424418217,1780860638000,-150.0,0.00014705,2]
[424418221,1780860638000,-150.0,0.00014772,2]
[424418219,1780860638000,-157.09,0.00014735,2]
[424418223,1780860638000,-566.43552333,0.00014786,2]
[424418233,1780860638000,-566.43552328,0.00014805,2]
[424418225,1780860638000,-33256.6326,0.00014786,2]
[424418235,1780860638000,-566.43552328,0.00014824,2]
[424418229,1780860638000,-2520.7786,0.00014786,2]
[424418231,1780860638000,-150.0,0.00014799,2]
[424418195,1780860638000,-150.0,0.00014424,2]
[424418193,1780860638000,-150.0,0.00014415,2]
[424418153,1780860638000,-150.0,0.00013862,2]
[424418189,1780860638000,-150.0,0.00014344,2]
[424418191,1780860638000,-166.66,0.00014384,2]
[424418227,1780860638000,-2000.0,0.00014786,2]
[424418158,1780860638000,-150.0,0.00013987,2]
[424418163,1780860638000,-150.0,0.00014059,2]
[424418156,1780860638000,-150.0,0.00013956,2]
[424418159,1780860638000,-2318.45740987,0.00014,2]
[424418157,1780860638000,-166.66,0.00013973,2]
[424418161,1780860638000,-1845.53523124,0.00014011,2]
[424418162,1780860638000,-150.0,0.0001405,2]
[424418170,1780860638000,-150.0,0.0001413,2]
[424418160,1780860638000,-250.0,0.00014,2]
[424418175,1780860638000,-150.0,0.00014237,2]
[424418174,1780860638000,-150.0,0.00014201,2]
[424418172,1780860638000,-150.0,0.00014143,2]
[424418177,1780860638000,-150.0,0.00014237,2]
[424418179,1780860638000,-150.0,0.00014237,2]
[424418181,1780860638000,-150.0,0.00014237,2]
[424418185,1780860638000,-150.0,0.00014273,2]
[424418183,1780860638000,-166.66,0.00014247,2]
[424418187,1780860638000,-150.0,0.00014331,2]
[424418168,1780860638000,-736.0,0.00014123,2]
[424418255,1780860639000,-301.1965498,0.00014885,2]
[424418261,1780860639000,-500.0,0.00014886,2]
[424418267,1780860639000,-500.0,0.00014886,2]
[424418269,1780860639000,-500.0,0.00014886,2]
[424418285,1780860639000,-566.43552328,0.000149,2]
[424418273,1780860639000,-250.0,0.00014886,2]
[424418275,1780860639000,-500.0,0.00014886,2]
[424418279,1780860639000,-500.0,0.00014886,2]
[424418254,1780860639000,-500.0,0.00014885,2]
[424418271,1780860639000,-2000.0,0.00014886,2]
[424418257,1780860639000,-215.55616165,0.00014885,2]
[424418241,1780860639000,-566.43552328,0.00014862,2]
[424418263,1780860639000,-500.0,0.00014886,2]
[424418252,1780860639000,-500.0,0.00014885,2]
[424418259,1780860639000,-244.53347144,0.00014885,2]
[424418248,1780860639000,-356.25201582,0.00014885,2]
[424418246,1780860639000,-500.0,0.00014885,2]
[424418244,1780860639000,-500.0,0.00014885,2]
[424418242,1780860639000,-566.43552328,0.00014881,2]
[424418236,1780860639000,-566.43552328,0.00014843,2]
[424418239,1780860639000,-150.0,0.00014844,2]
[424418283,1780860639000,-150.0,0.00014893,2]
[424418265,1780860639000,-500.0,0.00014886,2]
[424418278,1780860639000,-500.0,0.00014886,2]
[424418250,1780860639000,-173.89441998,0.00014885,2]
[424418281,1780860639000,-757980.5891,0.00014886,2]
[424418329,1780860639000,-300.0,0.00014999,2]
[424418330,1780860639000,-666.0,0.00014999,2]
[424418327,1780860639000,-2000.0,0.00014999,2]
[424418325,1780860639000,-250.0,0.00014999,2]
[424418310,1780860639000,-151.0,0.00014997,2]
[424418308,1780860639000,-120967.63391002,0.00014989,2]
[424418321,1780860639000,-500.0,0.00014999,2]
[424418331,1780860639000,-16462794.70492865,0.00015,2]
[424418306,1780860639000,-150.0,0.00014986,2]
[424418304,1780860639000,-151.0,0.00014986,2]
[424418317,1780860639000,-500.0,0.00014999,2]
[424418323,1780860639000,-425.80778009,0.00014999,2]
[424418316,1780860639000,-500.0,0.00014999,2]
[424418319,1780860639000,-500.0,0.00014999,2]
[424418296,1780860639000,-150.0,0.00014986,2]
[424418291,1780860639000,-150.0,0.00014915,2]
[424418289,1780860639000,-423.45778227,0.000149,2]
[424418293,1780860639000,-1500.0,0.00014918,2]
[424418287,1780860639000,-1978.02956141,0.000149,2]
[424418298,1780860639000,-150.0,0.00014986,2]
[424418300,1780860639000,-150.0,0.00014986,2]
[424418302,1780860639000,-150.00000001,0.00014986,2]
[424418314,1780860639000,-500.0,0.00014999,2]
[424418312,1780860639000,-500.0,0.00014999,2]
[424418348,1780860640000,-260.7239993,0.00014456,2]
[424418347,1780860640000,-307.4,0.00015,2]
[424418349,1780860640000,-308.4317,0.00014456,2]
[424418350,1780860640000,-1190.11875042,0.00014456,2]
[424418351,1780860640000,-86.26078152,0.00014456,2]
[424418352,1780860640000,-7416.59055343,0.00015,2]
[424418355,1780860640000,-505.57387787,0.00015,2]
[424418354,1780860640000,-321.23834862,0.00015,2]
[424418356,1780860640000,-9599.14585426,0.00015,2]
[424418357,1780860640000,-1729729.69593257,0.00015,2]
[424418359,1780860640000,-336279.06900745,0.00015,2]
[424418360,1780860640000,-66104.54814675,0.00015,2]
[424418353,1780860640000,-488.52303721,0.00015,2]
[424418358,1780860640000,-569.7664205,0.00015,2]
[424418371,1780860643000,-31123.94675399,0.00015,2]
[424418373,1780860643000,-220465.19597522,0.00015,2]
[424418372,1780860643000,-1845.53523124,0.000149,2]
[424418370,1780860643000,-338.39359318,0.00015,2]
[424418381,1780860646000,-980.076,0.00015,2]
[424418383,1780860646000,-4639.70886207,0.00015,2]
[424418382,1780860646000,-5109.79113818,0.00015,2]
[424418380,1780860646000,-1296.48150698,0.00015,2]
[424418379,1780860646000,-8095.41175846,0.00015,2]
[424418378,1780860646000,-356.572,0.00015,2]
[424418397,1780860760000,1000.0,0.00029452,120]
[424418401,1780861191000,208.68,0.00013924,120]
[424418403,1780861312000,1000.0,0.0003013,120]
[424418404,1780861382000,500.0,0.0003013,120]
[424418469,1780861832000,-5650.78680638,0.00013758,2]
[424418460,1780861832000,-166.66,0.00013699,2]
[424418458,1780861832000,-500.0,0.00013698,2]
[424418462,1780861832000,-150.0,0.00013722,2]
[424418472,1780861832000,-4999.99,0.00013758,2]
[424418463,1780861832000,-9999.99,0.00013722,2]
[424418464,1780861832000,-999.99,0.00013722,2]
[424418466,1780861832000,-6988.5591144,0.00013722,2]
[424418468,1780861832000,-475.82319362,0.00013758,2]
[424418446,1780861832000,-500.0,0.00013698,2]
[424418465,1780861832000,-3011.4308856,0.00013722,2]
[424418448,1780861832000,-500.0,0.00013698,2]
[424418441,1780861832000,-835.83,0.00013519,2]
[424418444,1780861832000,-1016.09,0.00013697,2]
[424418454,1780861832000,-500.0,0.00013698,2]
[424418439,1780861832000,-500.0,0.00013507,2]
[424418452,1780861832000,-500.0,0.00013698,2]
[424418450,1780861832000,-792.37,0.00013698,2]
[424418437,1780861832000,-256.65450087,0.00013488,2]
[424418428,1780861832000,-183.37304115,0.0001342,2]
[424418426,1780861832000,-150.0,0.00010644,2]
[424418435,1780861832000,-160.88134903,0.00013488,2]
[424418433,1780861832000,-150.00000012,0.00013488,2]
[424418431,1780861832000,-2852.00531385,0.0001342,2]
[424418442,1780861832000,-215.83393831,0.00013541,2]
[424418471,1780861832000,-150.99,0.00013758,2]
[424418456,1780861832000,-500.0,0.00013698,2]
[424418467,1780861832000,-558.92,0.00013722,2]
[424418498,1780861832000,-449.37641108,0.00014799,2]
[424418497,1780861832000,-500.0,0.00014799,2]
[424418495,1780861832000,-27895.22894401,0.00014789,2]
[424418496,1780861832000,-1441.48005852,0.0001479,2]
[424418494,1780861832000,-500.0,0.00014788,2]
[424418493,1780861832000,-27895.22894401,0.00014767,2]
[424418488,1780861832000,-4948.278,0.000147,2]
[424418487,1780861832000,-2500.0,0.00014667,2]
[424418489,1780861832000,-265.97810402,0.000147,2]
[424418491,1780861832000,-27895.22894401,0.00014722,2]
[424418490,1780861832000,-27895.22894407,0.000147,2]
[424418492,1780861832000,-27895.22894401,0.00014744,2]
[424418486,1780861832000,-6819.0192,0.000146,2]
[424418470,1780861832000,-24999.99,0.00013758,2]
[424418476,1780861832000,-166.68,0.00014101,2]
[424418478,1780861832000,-159.13,0.00014234,2]
[424418473,1780861832000,-1218.61,0.00013758,2]
[424418481,1780861832000,-150.0,0.000143,2]
[424418483,1780861832000,-299.99,0.00014301,2]
[424418485,1780861832000,-166.66,0.00014413,2]
[424418482,1780861832000,-567.0,0.00014301,2]
[424418475,1780861832000,-166.66,0.00013985,2]
[424418474,1780861832000,-166.66,0.00013842,2]